{"text_format":"3","workbook":"xlsx","n_sheets":2,"sheets":["SLIK BRUKER DU ARBEIDSBOKEN","KARAKTERBOK"],"not_rendered":{"defined_names":5},"read":"whole","date_system":"1900"}

{"sheet":"SLIK BRUKER DU ARBEIDSBOKEN","index":0,"n_rows":10,"n_cols":2,"rows_kept":10}
[null,"INSTRUKSJONER"]
[null,"Bruk KARAKTERBOK-regnearket for å beregne karakterer hvor hver oppgave er verst et visst antall poeng. "]
[null,"Instruksjoner: Sørg for å lagre sikkerhetskopier av karakterene dine."]
[null,"1. Fyll inn skolenavnet, klasseinformasjon, elevnavn og elev-ID-er (valgfritt).   "]
[null,"2. Juster Karakter- og Gjennomsnittlig karakter-tabellen for å samsvare med det vanlige karaktersettingssystemet du bruker."]
[null,"3. Fyll inn oppgave- eller prøvenavnene i celle G7, i tillegg til prosentandelen hver er verdt (f. eks. «Endelig» og «50 %»). "]
[null,"4. Fyll inn poengene for hver elev for hver oppgave eller prøve. Kolonnen «Poengsummen», «Ltr Grade» og «Gjennomsnittlig karakter» beregnes automatisk, men du kan overstyre dem hvis du vil. Den gjennomsnittlige og endelige karakteren er ufullstendig helt til alle poengene er samlet inn, på grunn av måten karakterene beregnes på."]
[null,"Bruk «Utskriftsområde»-kommandoen på Sideoppsett-menyen hvis du ønsker å endre hvilket område som skrives ut."]
[null,"Poengsum, Ltr Grade og Gjennomsnittlig karakter er ikke gyldig før 100 % av prøver og oppgaver er fullført. "]
[null,"Skriv inn hver oppgave eller prøve og prosentandelen av totalkarakteren i cellene G7 til W8."]

{"sheet":"KARAKTERBOK","index":1,"n_rows":20,"n_cols":23,"rows_kept":20,"merged":[[5,1,5,5],[6,1,6,3],[6,4,6,5],[7,1,8,3],[7,4,7,5],[8,4,8,5],[15,1,15,5],[16,1,16,2],[17,1,17,2],[18,1,18,2],[19,1,19,2]]}
[null,"NAVNET PÅ SKOLEN"]
[]
[{"$nulls":6},"Poengsum",{"v":0,"d":"0%"},{"v":0.6,"d":"60%"},{"v":0.63,"d":"63%"},{"v":0.67,"d":"67%"},{"v":0.7,"d":"70%"},{"v":0.73,"d":"73%"},{"v":0.77,"d":"77%"},{"v":0.8,"d":"80%"},{"v":0.83,"d":"83%"},{"v":0.87,"d":"87%"},{"v":0.9,"d":"90%"},{"v":0.93,"d":"93%"},{"v":0.97,"d":"97%"}]
[{"$nulls":6},"Ltr Grade","F","D-","D","D+","C-","C","C+","B-","B","B+","A-","A","A+"]
[{"$nulls":6},"Gjennomsnittlig karakter",0,0.67,1,1.33,1.67,2,2.33,2.67,3,3.33,3.67,4,4]
[null,"Lærernavn"]
[null,"Fag/prosjekt",null,null,"Oppgave- eller prøvenavn"]
[null,"År/semester/kvartal",null,null,"Prosentandel (må være totalt 100 %)"]
[{"$nulls":4},{"$f":"\"Total prosentandel: \"&SUM(G8:W8)*100&\"%\"","v":"Total prosentandel: 0%"}]
[null,"Elevens navn","ID for elev","Poengsum","Ltr Grade","Gjennomsnittlig karakter","Kolonne6","Kolonne7","Kolonne8","Kolonne9","Kolonne10","Kolonne11","Kolonne12","Kolonne13","Kolonne14","Kolonne15","Kolonne16","Kolonne17","Kolonne18","Kolonne19","Kolonne20","Kolonne21","Kolonne22"]
[{"$nulls":3},{"$f":"(IF(SUM(Karakterer[[#This Row],[Kolonne6]:[Kolonne22]]),ROUND(SUMPRODUCT($G$8:$W$8,Karakterer[[#This Row],[Kolonne6]:[Kolonne22]]),2),\"\"))","v":""},{"$f":"IF(Karakterer[[#This Row],[Poengsum]]<>\"\",HLOOKUP(Karakterer[[#This Row],[Poengsum]],GradeTable,2),\"\")","v":""},{"$f":"IF(Karakterer[[#This Row],[Poengsum]]<>\"\",HLOOKUP(Karakterer[[#This Row],[Poengsum]],GradeTable,3),\"\")","v":""}]
[{"$nulls":3},{"$f":"(IF(SUM(Karakterer[[#This Row],[Kolonne6]:[Kolonne22]]),ROUND(SUMPRODUCT($G$8:$W$8,Karakterer[[#This Row],[Kolonne6]:[Kolonne22]]),2),\"\"))","v":""},{"$f":"IF(Karakterer[[#This Row],[Poengsum]]<>\"\",HLOOKUP(Karakterer[[#This Row],[Poengsum]],GradeTable,2),\"\")","v":""},{"$f":"IF(Karakterer[[#This Row],[Poengsum]]<>\"\",HLOOKUP(Karakterer[[#This Row],[Poengsum]],GradeTable,3),\"\")","v":""}]
[{"$nulls":3},{"$f":"(IF(SUM(Karakterer[[#This Row],[Kolonne6]:[Kolonne22]]),ROUND(SUMPRODUCT($G$8:$W$8,Karakterer[[#This Row],[Kolonne6]:[Kolonne22]]),2),\"\"))","v":""},{"$f":"IF(Karakterer[[#This Row],[Poengsum]]<>\"\",HLOOKUP(Karakterer[[#This Row],[Poengsum]],GradeTable,2),\"\")","v":""},{"$f":"IF(Karakterer[[#This Row],[Poengsum]]<>\"\",HLOOKUP(Karakterer[[#This Row],[Poengsum]],GradeTable,3),\"\")","v":""}]
[{"$nulls":3},{"$f":"(IF(SUM(Karakterer[[#This Row],[Kolonne6]:[Kolonne22]]),ROUND(SUMPRODUCT($G$8:$W$8,Karakterer[[#This Row],[Kolonne6]:[Kolonne22]]),2),\"\"))","v":""},{"$f":"IF(Karakterer[[#This Row],[Poengsum]]<>\"\",HLOOKUP(Karakterer[[#This Row],[Poengsum]],GradeTable,2),\"\")","v":""},{"$f":"IF(Karakterer[[#This Row],[Poengsum]]<>\"\",HLOOKUP(Karakterer[[#This Row],[Poengsum]],GradeTable,3),\"\")","v":""}]
[{"$nulls":3},{"$f":"(IF(SUM(Karakterer[[#This Row],[Kolonne6]:[Kolonne22]]),ROUND(SUMPRODUCT($G$8:$W$8,Karakterer[[#This Row],[Kolonne6]:[Kolonne22]]),2),\"\"))","v":""},{"$f":"IF(Karakterer[[#This Row],[Poengsum]]<>\"\",HLOOKUP(Karakterer[[#This Row],[Poengsum]],GradeTable,2),\"\")","v":""},{"$f":"IF(Karakterer[[#This Row],[Poengsum]]<>\"\",HLOOKUP(Karakterer[[#This Row],[Poengsum]],GradeTable,3),\"\")","v":""}]
[]
[null,"Klassesammendrag",null,"Poengsum","Ltr Grade","Gjennomsnittlig karakter","","","","","","","","","","",""]
[null," Gjennomsnitt",null,{"$f":"IFERROR(AVERAGE(Karakterer[[#All],[Poengsum]]),0)","v":{"v":0,"d":"0.0%"}},{"$f":"IFERROR(HLOOKUP(D18,GradeTable,2),\"\")","v":"F"},{"$f":"IFERROR(AVERAGE(Karakterer[[#All],[Gjennomsnittlig karakter]]),0)","v":0},"","","","","","","","","","","","","","","","",""]
[null," Høyeste poengsum",null,{"$f":"IFERROR(MAX(Karakterer[[#All],[Poengsum]]),0)","v":{"v":0,"d":"0.0%"}},{"$f":"IFERROR(HLOOKUP(D19,GradeTable,2),\"\")","v":"F"},{"$f":"IFERROR(MAX(Karakterer[[#All],[Gjennomsnittlig karakter]]),0)","v":0},"","","","","","","","","","","","","","","","",""]
[null," Laveste poengsum",null,{"$f":"IFERROR(MIN(Karakterer[[#All],[Poengsum]]),0)","v":{"v":0,"d":"0.0%"}},{"$f":"IFERROR(HLOOKUP(D20,GradeTable,2),\"\")","v":"F"},{"$f":"IFERROR(MIN(Karakterer[[#All],[Gjennomsnittlig karakter]]),0)","v":0},"","","","","","","","","","","","","","","","",""]